[Event "USA-ch Women 2024"]
[Site "Saint Louis"]
[Date "2024.10.14"]
[Round "4.1"]
[White "Tokhirjonova, Gulrukhbegim"]
[Black "Zatonskih, Anna"]
[Result "1-0"]
[ECO "C13"]
[WhiteElo "2374"]
[BlackElo "2312"]
[Annotator "RC"]
[PlyCount "123"]
[EventDate "2024.10.09"]
[EventType "tourn"]
[EventCountry "USA"]
[SourceTitle "playchess.com"]
[Source "ChessBase"]
[SourceQuality "1"]
[TimeControl "40/5400+30:1800+30"]

1. e4 {[%emt 0:01:13]} e6 {[%emt 0:00:27]} 2. d4 {[%emt 0:00:29]} d5 {[%emt 0:00:05]} 3. Nc3 {[%emt 0:00:22]} Nf6 {[%emt 0:02:33]} 4. Bg5 {[%emt 0:01:03]} dxe4 {[%emt 0:01:47]} 5. Nxe4 {[%emt 0:00:28]} Be7 {[%emt 0:00:38]} 6. Bxf6 {[%emt 0:00:15]} gxf6 {[%emt 0:06:26]} 7. Nc3 {[%emt 0:01:29]} Nc6 {[%emt 0:13:28]} 8. Nf3 {[%emt 0:01:28]} Nb4 {[%emt 0:01:30]} 9. Bc4 {[%emt 0:13:13]} c6 {[%emt 0:10:11]} 10. Qd2 {[%emt 0:04:14]} Qa5 {[%emt 0:05:38]} 11. O-O {[%emt 0:10:48]} Qf5 {[%emt 0:23:25]} 12. a3 {[%emt 0:04:38]} Rg8 {[%emt 0:01:24]} 13. Ne1 {[%emt 0:00:54]} Nd5 {[%emt 0:02:00]} 14. Nxd5 {[%emt 0:02:18]} cxd5 {[%emt 0:00:44]} 15. Bd3 {[%emt 0:00:18]} Qh5 {[%emt 0:00:17]} 16. Rc1 {[%emt 0:03:59]} Bd7 {[%emt 0:01:07]} 17. f4 {[%emt 0:04:05]} O-O-O {[%emt 0:03:39]} 18. Rf3 {[%emt 0:06:51]} Kb8 {[%emt 0:04:59]} 19. Qf2 {[%emt 0:03:59]} Bd6 {[%emt 0:01:37]} 20. Be2 {[%emt 0:03:08]} Qh6 {[%emt 0:01:21]} 21. Rd1 {[%emt 0:06:18]} Rg6 {[%emt 0:02:04]} 22. g3 {[%emt 0:02:00]} e5 {[%emt 0:03:07]} 23. fxe5 {[%emt 0:05:51]} fxe5 {[%emt 0:00:21]} 24. dxe5 {[%emt 0:00:28]} Bc7 {[%emt 0:00:14]} 25. Rb3 {[%emt 0:06:22]} Ba4 {[%emt 0:04:32]} 26. Rb4 {[%emt 0:01:40]} Bb6 {[%emt 0:00:18]} 27. Rxb6 {[%emt 0:00:13]} Rxb6 {[%emt 0:00:26]} 28. Rd4 {[%emt 0:01:00]} Be8 {[%emt 0:00:45]} 29. Nd3 {[%emt 0:00:19]} Qd2 {[%emt 0:01:44]} 30. c4 {[%emt 0:01:30]} Bc6 {[%emt 0:03:31]} 31. b4 {[%emt 0:02:01]} Re8 {[%emt 0:02:18]} 32. c5 {[%emt 0:04:49]} Ra6 {[%emt 0:00:13]} 33. Ne1 {[%emt 0:00:15]} Qc1 {[%emt 0:01:25]} 34. Bxa6 {[%emt 0:00:53]} bxa6 {[%emt 0:01:09]} 35. Kg2 {[%emt 0:00:29]} Qxa3 {[%emt 0:00:36]} 36. Qxf7 {[%emt 0:03:13]} Qe3 {[%emt 0:01:36]} 37. Nf3 {[%emt 0:01:59]} Qe2+ {[%emt 0:00:31]} 38. Kh3 {[%emt 0:00:31]} Qe3 {[%emt 0:00:42]} 39. Qf4 {[%emt 0:01:17]} Qe2 {[%emt 0:00:29]} 40. Rd2 {[%emt 0:03:28]} Qe4 {[%emt 0:00:15]} 41. Rd4 {[%emt 0:04:30]} Qe2 {[%emt 0:11:10]} 42. g4 {[%emt 0:10:27]} Qf2 {[%emt 0:07:08]} 43. Rd2 {[%emt 0:06:25]} Qf1+ {[%emt 0:01:41]} 44. Kg3 {[%emt 0:00:14]} d4 {[%emt 0:02:41]} 45. Nxd4 {[%emt 0:00:51]} Qe1+ {[%emt 0:01:02]} 46. Rf2 {[%emt 0:00:27]} Bd5 {[%emt 0:00:47]} 47. e6+ {[%emt 0:02:08]} Ka8 {[%emt 0:00:07]} 48. Kh3 {[%emt 0:02:40]} h5 {[%emt 0:01:27]} 49. gxh5 {[%emt 0:01:03]} Qc3+ {[%emt 0:05:09]} 50. Kh4 {[%emt 0:00:18]} Qxb4 {[%emt 0:00:05]} 51. Qe5 {[%emt 0:02:01]} Qxc5 {[%emt 0:01:10]} 52. h6 {[%emt 0:02:23]} Rxe6 {[%emt 0:03:23]} 53. Rf8+ {[%emt 0:00:17]} Qxf8 {[%emt 0:00:14]} 54. Qxd5+ {[%emt 0:00:06]} Kb8 {[%emt 0:00:09]} 55. Qxe6 {[%emt 0:02:26]} Qf4+ {[%emt 0:00:51]} 56. Kh5 {[%emt 0:01:20]} Qxd4 {[%emt 0:01:15]} 57. h7 {[%emt 0:00:19]} Qd1+ {[%emt 0:00:26]} 58. Kg6 {[%emt 0:00:38]} Qc2+ {[%emt 0:00:07]} 59. Kg7 {[%emt 0:00:31]} Qg2+ {[%emt 0:00:39]} 60. Qg6 {[%emt 0:00:14]} Qb2+ {[%emt 0:00:46]} 61. Qf6 {[%emt 0:00:09]} Qb7+ {[%emt 0:00:27]} 62. Kh6 {[%emt 0:00:12]} 1-0

[Event "USA-ch Women 2024"]
[Site "Saint Louis"]
[Date "2024.10.14"]
[Round "4.2"]
[White "Yu, Jennifer"]
[Black "Cervantes Landeiro, Thalia"]
[Result "0-1"]
[ECO "D02"]
[WhiteElo "2267"]
[BlackElo "2302"]
[Annotator "RC"]
[PlyCount "80"]
[EventDate "2024.10.09"]
[EventType "tourn"]
[EventCountry "USA"]
[SourceTitle "playchess.com"]
[Source "ChessBase"]
[SourceQuality "1"]
[TimeControl "40/5400+30:1800+30"]

1. d4 {[%emt 0:00:14]} d5 {[%emt 0:00:28]} 2. Bf4 {[%emt 0:00:30]} Nf6 {[%emt 0:00:20]} 3. e3 {[%emt 0:00:27]} e6 {[%emt 0:10:28]} 4. Nd2 {[%emt 0:01:17]} Bd6 {[%emt 0:01:56]} 5. Bg3 {[%emt 0:00:21]} c5 {[%emt 0:01:50]} 6. Ngf3 {[%emt 0:02:23]} Nc6 {[%emt 0:01:26]} 7. c3 {[%emt 0:01:41]} O-O {[%emt 0:07:31]} 8. Bd3 {[%emt 0:00:39]} b6 {[%emt 0:05:19]} 9. Ne5 {[%emt 0:02:19]} Qc7 {[%emt 0:00:56]} 10. f4 {[%emt 0:00:47]} Nd7 {[%emt 0:05:48]} 11. O-O {[%emt 0:03:52]} f5 {[%emt 0:01:07]} 12. Bh4 {[%emt 0:07:24]} Nf6 {[%emt 0:02:47]} 13. h3 {[%emt 0:02:22]} Ne4 {[%emt 0:02:44]} 14. Rc1 {[%emt 0:15:09]} Nxe5 {[%emt 0:06:15]} 15. dxe5 {[%emt 0:13:04]} Be7 {[%emt 0:00:25]} 16. Bxe7 {[%emt 0:05:22]} Qxe7 {[%emt 0:00:10]} 17. Nxe4 {[%emt 0:01:14]} fxe4 {[%emt 0:00:39]} 18. Be2 {[%emt 0:00:05]} Bb7 {[%emt 0:03:55]} 19. Qe1 {[%emt 0:01:16]} Rad8 {[%emt 0:05:43]} 20. Rd1 {[%emt 0:01:34]} Bc6 {[%emt 0:04:29]} 21. g4 {[%emt 0:12:56]} b5 {[%emt 0:07:44]} 22. b4 {[%emt 0:06:05]} a5 {[%emt 0:01:31]} 23. bxc5 {[%emt 0:09:08]} Qxc5 {[%emt 0:00:10]} 24. Rd4 {[%emt 0:00:01]} Bd7 {[%emt 0:03:02]} 25. Qd2 {[%emt 0:04:39]} Rc8 {[%emt 0:02:30]} 26. a4 {[%emt 0:02:53]} Qxc3 {[%emt 0:05:45]} 27. Bxb5 {[%emt 0:00:06]} Bxb5 {[%emt 0:00:26]} 28. axb5 {[%emt 0:00:04]} Qb3 {[%emt 0:01:29]} 29. Rf2 {[%emt 0:01:46]} Rc3 {[%emt 0:02:52]} 30. Re2 {[%emt 0:03:44]} Rfc8 {[%emt 0:00:55]} 31. Kf2 {[%emt 0:00:26]} Rd3 {[%emt 0:03:32]} 32. Qb2 {[%emt 0:01:27]} Rxe3 {[%emt 0:00:35]} 33. Qxb3 {[%emt 0:00:03]} Rxb3 {[%emt 0:00:07]} 34. f5 {[%emt 0:00:02]} Rxb5 {[%emt 0:01:18]} 35. fxe6 {[%emt 0:00:04]} Kf8 {[%emt 0:02:24]} 36. Red2 {[%emt 0:00:56]} Rcc5 {[%emt 0:00:16]} 37. Ke3 {[%emt 0:00:58]} Ke7 {[%emt 0:00:11]} 38. Kf4 {[%emt 0:01:20]} Kxe6 {[%emt 0:00:11]} 39. Ra4 {[%emt 0:00:03]} Rb8 {[%emt 0:00:37]} 40. Rda2 {[%emt 0:00:15]} Rf8+ {[%emt 0:00:14]} 0-1

[Event "USA-ch Women 2024"]
[Site "Saint Louis"]
[Date "2024.10.14"]
[Round "4.3"]
[White "Abrahamyan, Tatev"]
[Black "Lee, Megan"]
[Result "0-1"]
[ECO "C55"]
[WhiteElo "2327"]
[BlackElo "2253"]
[Annotator "RC"]
[PlyCount "84"]
[EventDate "2024.10.09"]
[EventType "tourn"]
[EventCountry "USA"]
[SourceTitle "playchess.com"]
[Source "ChessBase"]
[SourceQuality "1"]
[TimeControl "40/5400+30:1800+30"]

1. e4 {[%emt 0:00:03]} e5 {[%emt 0:00:05]} 2. Nf3 {[%emt 0:00:04]} Nc6 {[%emt 0:00:04]} 3. Bc4 {[%emt 0:00:07]} Nf6 {[%emt 0:00:06]} 4. d3 {[%emt 0:01:08]} Be7 {[%emt 0:00:05]} 5. O-O {[%emt 0:03:40]} O-O {[%emt 0:00:36]} 6. Re1 {[%emt 0:00:28]} d6 {[%emt 0:00:21]} 7. a4 {[%emt 0:01:13]} Na5 {[%emt 0:00:24]} 8. Ba2 {[%emt 0:00:52]} c5 {[%emt 0:00:06]} 9. c3 {[%emt 0:01:17]} Nc6 {[%emt 0:03:35]} 10. h3 {[%emt 0:03:54]} Be6 {[%emt 0:05:23]} 11. Bxe6 {[%emt 0:13:29]} fxe6 {[%emt 0:00:02]} 12. Na3 {[%emt 0:11:32]} Rc8 {[%emt 0:04:39]} 13. Rb1 {[%emt 0:05:11]} Qe8 {[%emt 0:09:05]} 14. Nc4 {[%emt 0:11:18]} Qg6 {[%emt 0:05:48]} 15. b4 {[%emt 0:02:53]} cxb4 {[%emt 0:02:47]} 16. cxb4 {[%emt 0:03:19]} Nh5 {[%emt 0:04:46]} 17. b5 {[%emt 0:02:12]} Nd8 {[%emt 0:01:20]} 18. Rb2 {[%emt 0:04:18]} b6 {[%emt 0:13:56]} 19. a5 {[%emt 0:14:26]} bxa5 {[%emt 0:00:00]} 20. Be3 {[%emt 0:00:14]} Nb7 {[%emt 0:00:00]} 21. b6 {[%emt 0:05:18]} a6 {[%emt 0:03:00]} 22. Kh2 {[%emt 0:04:14]} Nf4 {[%emt 0:01:54]} 23. Bxf4 {[%emt 0:00:00]} Rxf4 {[%emt 0:05:15]} 24. Re3 {[%emt 0:06:22]} Qe8 {[%emt 0:01:20]} 25. Qd2 {[%emt 0:00:22]} Rc5 {[%emt 0:03:26]} 26. Re1 {[%emt 0:00:00]} g5 {[%emt 0:05:25]} 27. Ra1 {[%emt 0:18:14]} a4 {[%emt 0:17:52]} 28. Qd1 {[%emt 0:00:00]} d5 {[%emt 0:05:20]} 29. exd5 {[%emt 0:00:00]} e4 {[%emt 0:00:31]} 30. Nd4 {[%emt 0:00:00]} exd5 {[%emt 0:00:16]} 31. Ne3 {[%emt 0:00:00]} Bf6 {[%emt 0:01:28]} 32. Rxa4 {[%emt 0:00:00]} exd3 {[%emt 0:00:55]} 33. Ng4 {[%emt 0:00:00]} Bg7 {[%emt 0:01:36]} 34. Rd2 {[%emt 0:00:00]} h5 {[%emt 0:02:37]} 35. Rxa6 {[%emt 0:00:00]} Bxd4 {[%emt 0:01:38]} 36. Rxd3 {[%emt 0:00:00]} hxg4 {[%emt 0:00:31]} 37. Rxd4 {[%emt 0:00:00]} Qe5 {[%emt 0:00:14]} 38. Rd2 {[%emt 0:00:00]} Ra4+ {[%emt 0:00:52]} 39. g3 {[%emt 0:00:00]} Rxa6 {[%emt 0:00:15]} 40. Re2 {[%emt 0:00:00]} Qf6 {[%emt 0:00:55]} 41. Re8+ {[%emt 0:00:00]} Kf7 {[%emt 0:00:47]} 42. Qe2 {[%emt 0:00:49]} Ra2 {[%emt 0:01:01]} 0-1

[Event "USA-ch Women 2024"]
[Site "Saint Louis"]
[Date "2024.10.14"]
[Round "4.4"]
[White "Lee, Alice"]
[Black "Atwell, Rose"]
[Result "1/2-1/2"]
[ECO "D87"]
[WhiteElo "2395"]
[BlackElo "2185"]
[Annotator "TA"]
[PlyCount "96"]
[EventDate "2024.10.09"]
[EventType "tourn"]
[EventCountry "USA"]
[SourceTitle "playchess.com"]
[Source "ChessBase"]
[SourceQuality "1"]
[TimeControl "40/5400+30:1800+30"]

{[%evp 24,96,42,0,0,-14,-10,-7,19,0,0,-22,-15,-18,-32,-34,-19,-41,-14,-18,-15,-25,0,-35,-26,-21,86,38,49,41,34,50,64,63,62,51,62,0,0,0,0,0,0,0,0,0,0,-104,0,0,0,0,0,0,0,0,0,0,0,0,0,0,0,0,0,0,0,0,0,0,0,0,0,0,0]} 1. d4 {[%emt 0:00:20]} Nf6 {[%emt 0:00:05]} 2. c4 {[%emt 0:00:09]} g6 {[%emt 0:00:05]} 3. Nc3 {[%emt 0:00:14]} d5 {[%emt 0:00:05]} 4. cxd5 {[%emt 0:04:45]} Nxd5 {[%emt 0:00:16]} 5. e4 {[%emt 0:00:09]} Nxc3 {[%emt 0:00:38]} 6. bxc3 {[%emt 0:00:29]} Bg7 {[%emt 0:00:05]} 7. Bc4 {[%emt 0:00:21]} c5 {[%emt 0:00:06]} 8. Ne2 {[%emt 0:00:07]} O-O {[%emt 0:00:12]} 9. O-O {[%emt 0:00:15]} Nc6 {[%emt 0:01:16]} 10. Be3 {[%emt 0:00:12]} Bg4 {[%emt 0:00:14]} 11. f3 {[%emt 0:00:12]} Bd7 {[%emt 0:00:18]} 12. Rc1 {[%emt 0:01:37]} Rc8 {[%emt 0:00:48]} 13. Qd2 {[%emt 0:02:07]} Qa5 {[%emt 0:02:04]} 14. d5 {[%emt 0:12:51]} Ne5 {[%emt 0:01:04]} 15. Bb3 {[%emt 0:00:16]} c4 {[%emt 0:09:42]} 16. Bc2 {[%emt 0:00:49]} e6 {[%emt 0:03:43]} 17. Nf4 {[%emt 0:11:17][%cal Oa2a4]} Rfd8 {[%emt 0:07:30]} 18. Bd4 {[%emt 0:02:25]} exd5 {[%emt 0:13:29]} 19. exd5 {[%emt 0:03:11]} Re8 {[%emt 0:12:23]} (19... Qxa2 $2 20. Nh5 gxh5 21. Ra1 $18 (21. Bxh7+ Kxh7 22. Qxa2 Rg8 $18) (21. Bxh7+ Kxh7 22. Qxa2 Nd3 $18)) 20. Qf2 {[%emt 0:03:17]} Ba4 {[%emt 0:04:14]} (20... Qxa2 $2 21. Ra1 (21. Bxa7 Ba4 $15) 21... Qb2 22. Rfb1 $18 (22. Rxa7 Nd3 $14) (22. Rxa7 Nd3 $11)) 21. Bb1 {[%emt 0:03:16]} Qa6 {[%emt 0:03:46]} 22. Rce1 {[%emt 0:08:08]} Bb5 {[%emt 0:02:58]} 23. Ne6 fxe6 {[%emt 0:01:22]} 24. Bxe5 {[%emt 0:06:57]} Bf8 {[%emt 0:03:33]} (24... exd5 $11 25. Bxg7 Kxg7) 25. dxe6 {[%emt 0:02:48] White is more active.} ({Better is} 25. d6 $16 Qb6 26. Qxb6 axb6 27. Be4) 25... Rxe6 {[%emt 0:03:09]} 26. Bd4 {[%emt 0:00:43]} Rce8 {[%emt 0:01:51][%cal Bc8e8,Be8e6,Be6f6][%mdl 32]} 27. Rxe6 {[%emt 0:02:59]} (27. Bxa7 $2 Rxe1 28. Rxe1 Rxe1+ 29. Qxe1 Qxa7+ $19) 27... Rxe6 {[%emt 0:00:40]} 28. f4 {[%emt 0:03:32][%cal Bf3f4,Bf4f5][%mdl 32] [#] Threatens to win with f5!} (28. Bxa7 $2 b6 29. Qb2 Ba3 $19) 28... Bg7 $1 {[%emt 0:05:01]} 29. f5 {[%emt 0:02:02]} Bxd4 {[%emt 0:00:25]} 30. cxd4 {[%emt 0:02:27]} (30. Qxd4 $14 Rd6 31. Qe5 Qb6+ 32. Kh1) 30... Rf6 $11 {[%emt 0:00:50]} 31. g4 {[%emt 0:01:30]} c3 {[%emt 0:05:16]} 32. Re1 {[%emt 0:03:03]} gxf5 {[%emt 0:04:31]} 33. Bxf5 {[%emt 0:06:09] [#] g5 is the strong threat.} Bd7 {[%emt 0:01:37]} 34. Re7 {[%emt 0:10:23]} Qd6 {[%emt 0:07:16]} 35. Bxh7+ {[%emt 0:00:39]} (35. Rxd7 $2 {too greedy.} Qxd7 36. Bxh7+ (36. Bxd7 $2 Rxf2 37. Be6+ Kh8 $19) 36... Kg7 $19 (36... Kxh7 37. Qxf6 Qxg4+ 38. Kf2 $17)) (35. Re3 $1 $11 {remains equal.}) 35... Kh8 {[%emt 0:00:10]} (35... Kf8 $17 {[%cal Of6f2]} 36. Rxd7 Qe6 37. Rd8+ (37. Rxb7 $2 {perishes.} Qxg4+ 38. Kf1 Qh3+ 39. Kg1 Rxf2 $19) 37... Ke7) 36. Rxd7 $1 {[%emt 0:02:23] The position is equal.} Qxd7 {[%emt 0:01:35]} 37. Qxf6+ {[%emt 0:00:07]} Kxh7 {[%emt 0:00:03][%mdl 4096] Endgame. KQ-KQ} 38. g5 {[%emt 0:05:11]} Qg4+ {[%emt 0:05:02]} 39. Kf2 {[%emt 0:00:05]} Qh4+ {[%emt 0:00:09]} 40. Ke3 {[%emt 0:02:16]} Qh3+ {[%emt 0:00:56]} 41. Ke4 {[%emt 0:02:46] Threatening mate with g6+.} Qg2+ {[%emt 0:02:24]} 42. Ke5 {[%emt 0:09:52] Black must now prevent d5.} Qxh2+ {[%emt 0:07:40]} 43. Ke6 {[%emt 0:01:19] Intending g6+ and mate.} Qe2+ {[%emt 0:01:13]} 44. Kd7 {[%emt 0:04:03] Hoping for Qf7+.} Qb5+ {[%emt 0:07:01]} 45. Ke7 {[%emt 0:00:14]} Qb4+ {[%emt 0:00:25]} 46. Kd7 {[%emt 0:00:37]} Qb5+ {[%emt 0:02:30]} 47. Ke7 {[%emt 0:00:38]} Qb4+ {[%emt 0:01:51]} 48. Kd7 {[%emt 0:00:34]} Qb5+ {[%emt 0:02:41] Weighted Error Value: White=0.11 (very precise) /Black=0.11 (very precise) .  Mistake:       	White=3     	Black=2      Inaccurate:     	White=1     	Black=2      OK:         	White=16    	Black=13     Best:        	White=2     	Black=4      Strong:       	White=1     	Black=1} 1/2-1/2

[Event "USA-ch Women 2024"]
[Site "Saint Louis"]
[Date "2024.10.14"]
[Round "4.5"]
[White "Krush, Irina"]
[Black "Yip, Carissa"]
[Result "0-1"]
[ECO "A40"]
[WhiteElo "2388"]
[BlackElo "2418"]
[Annotator "TA"]
[PlyCount "108"]
[EventDate "2024.10.09"]
[EventType "tourn"]
[EventCountry "USA"]
[SourceTitle "playchess.com"]
[Source "ChessBase"]
[SourceQuality "1"]
[TimeControl "40/5400+30:1800+30"]

{[%evp 38,108,72,46,112,70,78,74,74,74,81,81,110,0,0,-12,0,-78,-90,-93,-101,-75,20,17,56,29,310,0,0,0,9,-52,0,0,0,0,0,0,0,0,0,0,0,0,0,0,0,0,0,-4,0,0,0,0,0,-373,-377,-379,-382,-379,-369,-29978,-29980,-29981,-29981,-29981,-29982,-29982,-29982,-29995,-29991,-29996,-29997]} 1. c4 {[%emt 0:00:04]} g6 {[%emt 0:00:11]} 2. Nc3 {[%emt 0:00:29]} Bg7 {[%emt 0:00:06]} 3. d4 {[%emt 0:00:17]} c5 {[%emt 0:00:28]} 4. d5 {[%emt 0:01:00]} Bxc3+ {[%emt 0:00:15]} 5. bxc3 {[%emt 0:00:03]} e5 {[%emt 0:00:04]} 6. e4 {[%emt 0:01:07] A40: Unusual replies to 1 d4.} d6 {[%emt 0:00:21]} 7. Bd3 {[%emt 0:04:53]} Nd7 {[%emt 0:01:06]} 8. Ne2 {[%emt 0:02:30]} Qe7 {[%emt 0:01:20]} 9. O-O {[%emt 0:08:04]} h5 {[%emt 0:05:11]} 10. a4 $146 {[%emt 0:06:25]} ({Predecessor:} 10. h3 Nh6 11. f4 f6 12. f5 g5 13. Ng3 h4 14. Nh5 Kd8 15. g3 hxg3 16. Kg2 {0-1 Gorshtein,I (2563)-Kazhgaleyev,M (2458) Aix en Provence Dole op 2nd 2024 (6)}) 10... a5 {[%emt 0:00:03]} 11. Rb1 {[%emt 0:00:07]} Kd8 {[%emt 0:00:07]} 12. Be3 {[%emt 0:06:14]} Kc7 {[%emt 0:02:26]} 13. Rb5 {[%emt 0:03:19]} h4 {[%emt 0:06:24]} 14. Qd2 {[%emt 0:01:57]} Ra6 {[%emt 0:03:25]} 15. Qb2 {[%emt 0:11:51]} g5 {[%emt 0:14:54]} 16. Rb1 {[%emt 0:00:52]} b6 {[%emt 0:00:37]} 17. f3 {[%emt 0:06:08]} f6 {[%emt 0:01:16]} 18. Nc1 {[%emt 0:04:10]} Qg7 {[%emt 0:01:41]} 19. Nb3 {[%emt 0:06:50]} Ne7 {[%emt 0:06:46]} 20. Be2 {[%emt 0:02:36]} (20. h3 {is interesting.} Ng6 21. Qc2 Nf4 22. Rb2) 20... Kd8 {[%emt 0:02:26]} (20... h3 $14) 21. Bf2 {[%emt 0:02:04]} Ng6 {[%emt 0:00:49]} 22. Nd2 {[%emt 0:01:17]} Kc7 {[%emt 0:05:46]} 23. Nf1 {[%emt 0:00:27]} Ne7 {[%emt 0:00:32]} 24. Ne3 {[%emt 0:00:10]} Qh7 {[%emt 0:00:35]} 25. Kf1 {[%emt 0:01:25]} (25. h3 $16) 25... f5 $11 {[%emt 0:06:55]} 26. exf5 {[%emt 0:02:23]} Nxf5 {[%emt 0:00:03]} 27. Ng4 {[%emt 0:02:00]} (27. Qd2 $11 {keeps the balance.}) 27... h3 $1 $17 {[%emt 0:07:51]} 28. g3 {[%emt 0:01:03]} Rf8 {[%emt 0:09:22]} 29. Kg1 {[%emt 0:03:11] [#]} Ne7 {[%emt 0:02:50]} ({Black should play} 29... e4 $1 $17 {And now ...Nh6 would win.} 30. Qc2 (30. fxe4 $2 Nxg3 31. Bd3 Nxe4 $19) 30... exf3 31. Bxf3 Ra8) 30. Be3 $11 {[%emt 0:06:44]} Qg6 {[%emt 0:03:26]} 31. Nf2 {[%emt 0:02:34]} e4 $2 {[%emt 0:05:43][%mdl 8192]} (31... Nf5 $11 {and Black is okay.} 32. Bd3 Qg7) 32. fxe4 $2 {[%emt 0:06:31]} (32. Nxe4 $18 g4 33. Bd3 (33. Bf4 $2 Rxf4 34. gxf4 gxf3+ 35. Ng5 fxe2 $19)) 32... Rxf2 $1 $11 {[%emt 0:00:14]} 33. Kxf2 {[%emt 0:03:36]} Qxe4 {[%emt 0:00:04]} 34. Bxg5 {[%emt 0:00:29]} (34. Rg1 $1 $11) 34... Qg2+ {[%emt 0:03:12]} (34... Ng6 $1 $15 35. Qd2 (35. Bf3 $2 Qf5 $19) 35... Nde5) 35. Ke1 $11 {[%emt 0:00:02]} Qxh2 {[%emt 0:01:18]} 36. Bxe7 {[%emt 0:01:08]} Qxg3+ {[%emt 0:00:23]} 37. Kd2 {[%emt 0:04:08]} Qf4+ {[%emt 0:00:21]} 38. Kc2 {[%emt 0:00:39]} Qe4+ {[%emt 0:00:43]} 39. Kb3 $1 {[%emt 0:00:03]} Qxe7 {[%emt 0:00:07]} 40. Ka3 {[%emt 0:00:58]} Qh4 {[%emt 0:06:45]} 41. Bd3 {[%emt 0:05:34]} Qg3 {[%emt 0:16:38]} 42. Bf1 $1 {[%emt 0:07:00]} Qh4 {[%emt 0:02:39]} 43. Bd3 {[%emt 0:04:42]} Ne5 {[%emt 0:05:11]} 44. Rxb6 {[%emt 0:01:32]} Nxd3 {[%emt 0:00:03]} 45. Qb5 {[%emt 0:10:29]} Nb4 $1 {[%emt 0:00:06]} 46. Rxa6 $4 {[%emt 0:00:14][%mdl 8192]} (46. Rf1 $11 Nc2+ (46... Rxb6 47. Rf7+ Kd8 48. Rf8+ Kc7 49. Rf7+ Kd8 50. Rf8+ Kc7 51. Rf7+ $11) (46... Qe7 47. Rb8 $11) 47. Ka2 Nb4+ (47... Rxb6 48. Rf7+ Kd8 49. Rf8+ Kc7 50. Rf7+ Kd8 51. Rf8+ Kc7 52. Rf7+ $11) 48. Ka3 (48. cxb4 Rxb6 49. Rf7+ Kd8 $11) 48... Rxb6 (48... Nc2+ 49. Ka2 $11) (48... Qe7 49. Rb8 $11) 49. Rf7+ Kd8 50. Rf8+ Kc7 51. Rf7+ Kd8 52. Rf8+ Kc7 53. Rf7+) 46... Bxa6 $19 {[%emt 0:00:04]} (46... Nxa6 $2 {too greedy.} 47. Qc6+ Kd8 48. Qxd6+ Bd7 49. Qxa6 $18) 47. Qxa5+ {[%emt 0:00:08]} Kd7 {[%emt 0:00:02]} 48. cxb4 {[%emt 0:00:38] [#]} Qg3+ $1 {[%emt 0:00:02]} (48... cxb4+ 49. Qxb4 Qd4 50. c5 Qe3+ 51. Ka2 Qe2+ 52. Ka1 Qe5+ 53. Qb2 Qxb2+ 54. Kxb2 $18) 49. Kb2 $2 {[%emt 0:04:22]} (49. Rb3 $19 Qe1 50. Rxh3 (50. Qxa6 $2 Qa1#) 50... Qc1+ 51. Ka2 Bxc4+ 52. Rb3 Qc2+ (52... Bxb3+ 53. Kxb3 c4+ 54. Ka2 $11) 53. Ka1 Qd1+ (53... Qxb3 54. Qa7+ Ke8 55. Qb8+ Kd7 56. Qb7+ Kd8 57. Qb8+ Ke7 58. Qc7+ Kf6 59. Qxd6+ Kg5 60. Qe5+ Kh4 61. Qf6+ Kh3 62. Qh8+ Kg4 63. Qg7+ Kf3 64. Qf6+ Kg3 65. Qe5+ Kh3 66. Qh8+ Kg4 67. Qg7+ Kf3 68. Qf6+ Ke4 69. Qg6+ Kf3 70. Qf6+ $11) 54. Rb1 Qd4+ 55. Rb2 Qg1+ 56. Rb1) 49... Qe5+ {[%emt 0:00:27]} 50. Kc2 {[%emt 0:00:30]} Qe2+ {[%emt 0:00:14]} 51. Kc3 {[%emt 0:00:20]} Qxc4+ {[%emt 0:00:07]} 52. Kb2 {[%emt 0:00:22]} Qd4+ {[%emt 0:00:04]} 53. Kc1 {[%emt 0:00:49]} Qc3+ {[%emt 0:01:27]} 54. Kd1 {[%emt 0:00:02]} h2 {[%emt 0:00:08]} 0-1

[Event "USA-ch Women 2024"]
[Site "Saint Louis"]
[Date "2024.10.14"]
[Round "4.6"]
[White "Paikidze, Nazi"]
[Black "Pourkashiyan, Atousa"]
[Result "1/2-1/2"]
[ECO "B23"]
[WhiteElo "2314"]
[BlackElo "2269"]
[Annotator "RC"]
[PlyCount "89"]
[EventDate "2024.10.09"]
[EventType "tourn"]
[EventCountry "USA"]
[SourceTitle "playchess.com"]
[Source "ChessBase"]
[SourceQuality "1"]
[TimeControl "40/5400+30:1800+30"]

1. e4 {[%emt 0:00:03]} c5 {[%emt 0:01:10]} 2. Nc3 {[%emt 0:00:06]} a6 {[%emt 0:01:29]} 3. g3 {[%emt 0:00:07]} b5 {[%emt 0:00:55]} 4. Bg2 {[%emt 0:00:08]} Bb7 {[%emt 0:00:06]} 5. d3 {[%emt 0:01:04]} d6 {[%emt 0:05:55]} 6. f4 {[%emt 0:01:45]} g6 {[%emt 0:03:04]} 7. Nf3 {[%emt 0:01:27]} Bg7 {[%emt 0:00:11]} 8. O-O {[%emt 0:00:57]} b4 {[%emt 0:03:40]} 9. Ne2 {[%emt 0:01:07]} e5 {[%emt 0:14:19]} 10. fxe5 {[%emt 0:05:38]} dxe5 {[%emt 0:00:31]} 11. Be3 {[%emt 0:03:11]} Nd7 {[%emt 0:02:55]} 12. c3 {[%emt 0:06:39]} Ngf6 {[%emt 0:01:38]} 13. cxb4 {[%emt 0:06:47]} cxb4 {[%emt 0:00:53]} 14. Qa4 {[%emt 0:02:09]} O-O {[%emt 0:11:12]} 15. Qxb4 {[%emt 0:01:30]} Ng4 {[%emt 0:05:41]} 16. Bg5 {[%emt 0:04:11]} Qb8 {[%emt 0:04:27]} 17. h3 {[%emt 0:09:02]} Qa7+ {[%emt 0:02:45]} 18. Kh1 {[%emt 0:00:33]} Nf2+ {[%emt 0:01:05]} 19. Rxf2 {[%emt 0:09:16]} Qxf2 {[%emt 0:00:06]} 20. Qxb7 {[%emt 0:00:40]} Qxe2 {[%emt 0:10:30]} 21. Qxd7 {[%emt 0:01:36]} Qxb2 {[%emt 0:00:03]} 22. Rf1 {[%emt 0:01:13]} Qxa2 {[%emt 0:03:12]} 23. Be7 {[%emt 0:04:45]} Rfb8 {[%emt 0:04:25]} 24. Ng5 {[%emt 0:04:31]} Rb1 {[%emt 0:01:50]} 25. Rxb1 {[%emt 0:24:41]} Qxb1+ {[%emt 0:00:03]} 26. Kh2 {[%emt 0:00:03]} Qb3 {[%emt 0:02:19]} 27. Qc6 {[%emt 0:02:17]} Rb8 {[%emt 0:03:41]} 28. Qxa6 {[%emt 0:00:05]} h6 {[%emt 0:00:52]} 29. Nf3 {[%emt 0:00:14]} Qc2 {[%emt 0:01:47]} 30. Qc4 {[%emt 0:01:00]} Qe2 {[%emt 0:01:35]} 31. Bb4 {[%emt 0:02:21]} Ra8 {[%emt 0:02:36]} 32. Ng1 {[%emt 0:03:56]} Qf2 {[%emt 0:02:01]} 33. Qc5 {[%emt 0:01:02]} Qb2 {[%emt 0:01:33]} 34. Qc3 {[%emt 0:00:06]} Qb1 {[%emt 0:02:56]} 35. Nf3 {[%emt 0:01:39]} Ra2 {[%emt 0:01:01]} 36. Nd2 {[%emt 0:01:15]} Qd1 {[%emt 0:00:42]} 37. Ba5 {[%emt 0:00:51]} Rc2 {[%emt 0:02:21]} 38. Qb4 {[%emt 0:01:03]} Qe2 {[%emt 0:01:48]} 39. Qb3 {[%emt 0:00:30]} Rxd2 {[%emt 0:00:54]} 40. Bxd2 {[%emt 0:00:09]} Qxd2 {[%emt 0:00:02]} 41. Qb8+ {[%emt 0:03:14]} Kh7 {[%emt 0:02:12]} 42. Qa7 {[%emt 0:00:16]} Kg8 {[%emt 0:02:45]} 43. Qb8+ {[%emt 0:01:14]} Kh7 {[%emt 0:04:48]} 44. Qa7 {[%emt 0:00:19]} Kg8 {[%emt 0:00:29]} 45. Qb8+ {[%emt 0:00:12]} 1/2-1/2